[Event "Live Chess"]
[Site "Chess.com"]
[Date "2024.06.02"]
[Round "-"]
[White "MagnersCarlsberg2870"]
[Black "KeithArkell"]
[Result "0-1"]
[WhiteElo "1819"]
[BlackElo "2414"]
[TimeControl "300"]
[EndTime "0:42:41 PDT"]
[Termination "KeithArkell won by resignation"]

1. Nf3 {[%clk 0:04:57.2]} 1... b5 {[%clk 0:04:58.3]} 2. g3 {[%clk 0:04:54.8]}
2... Bb7 {[%clk 0:04:57.3]} 3. Bg2 {[%clk 0:04:54.2]} 3... Nf6 {[%clk
0:04:56.7]} 4. d3 {[%clk 0:04:53.5]} 4... e6 {[%clk 0:04:56.1]} 5. Nbd2 {[%clk
0:04:52.5]} 5... d5 {[%clk 0:04:55.4]} 6. e4 {[%clk 0:04:51.7]} 6... dxe4 {[%clk
0:04:53.8]} 7. dxe4 {[%clk 0:04:40.7]} 7... Nxe4 {[%clk 0:04:52.8]} 8. O-O
{[%clk 0:04:39.6]} 8... Nxd2 {[%clk 0:04:51.3]} 9. Bxd2 {[%clk 0:04:38.5]} 9...
Be7 {[%clk 0:04:48.8]} 10. Qe2 {[%clk 0:04:37.5]} 10... a6 {[%clk 0:04:41.4]}
11. Rad1 {[%clk 0:04:36.1]} 11... Bd6 {[%clk 0:04:40.7]} 12. Bc3 {[%clk
0:04:34.5]} 12... O-O {[%clk 0:04:39]} 13. Ne5 {[%clk 0:04:27.4]} 13... Bxg2
{[%clk 0:04:37.2]} 14. Kxg2 {[%clk 0:04:25.4]} 14... Nd7 {[%clk 0:04:35.3]} 15.
Qg4 {[%clk 0:04:10.2]} 15... Nxe5 {[%clk 0:04:22.5]} 16. Bxe5 {[%clk 0:04:07.6]}
16... g6 {[%clk 0:04:21]} 17. Qf3 {[%clk 0:03:51.1]} 17... Qe7 {[%clk
0:04:18.3]} 18. Bf6 {[%clk 0:03:49.4]} 18... Qd7 {[%clk 0:04:16.8]} 19. Qe3
{[%clk 0:03:46.4]} 19... Rfe8 {[%clk 0:04:14.8]} 20. Qh6 {[%clk 0:03:38.8]}
20... Qc6+ {[%clk 0:04:13.6]} 21. Kg1 {[%clk 0:03:35.7]} 21... Bf8 {[%clk
0:04:12.8]} 22. Qe3 {[%clk 0:03:07.5]} 22... Bg7 {[%clk 0:04:09.8]} 23. Bxg7
{[%clk 0:03:03.5]} 23... Kxg7 {[%clk 0:04:09.2]} 24. Rd4 {[%clk 0:02:59.3]}
24... Qxc2 {[%clk 0:04:04.6]} 25. Rh4 {[%clk 0:02:56.7]} 25... h5 {[%clk
0:04:01.4]} 26. g4 {[%clk 0:02:55.7]} 26... hxg4 {[%clk 0:03:41.1]} 27. Qh6+
{[%clk 0:02:53.3]} 27... Kf6 {[%clk 0:03:40.5]} 28. Qg5+ {[%clk 0:02:36.7]}
28... Kxg5 {[%clk 0:03:38.8]} 0-1

[Event "Live Chess"]
[Site "Chess.com"]
[Date "2024.06.02"]
[Round "-"]
[White "SimonBoy1"]
[Black "juniortay"]
[Result "0-1"]
[WhiteElo "1530"]
[BlackElo "2384"]
[TimeControl "300"]
[EndTime "0:42:48 PDT"]
[Termination "juniortay won by resignation"]

1. e4 {[%clk 0:04:59.2]} 1... e5 {[%clk 0:04:58.8]} 2. Nf3 {[%clk 0:04:58.6]}
2... Nf6 {[%clk 0:04:58]} 3. d4 {[%clk 0:04:52.7]} 3... Nxe4 {[%clk 0:04:56.9]}
4. Qe2 {[%clk 0:04:46.5]} 4... d5 {[%clk 0:04:53.3]} 5. Nxe5 {[%clk 0:04:42.8]}
5... Be7 {[%clk 0:04:52.3]} 6. Nc3 {[%clk 0:04:39]} 6... Nxc3 {[%clk 0:04:50.8]}
7. bxc3 {[%clk 0:04:38.9]} 7... O-O {[%clk 0:04:50]} 8. Qd3 {[%clk 0:04:29.9]}
8... Nc6 {[%clk 0:04:45.7]} 9. f4 {[%clk 0:04:23.8]} 9... f6 {[%clk 0:04:38.8]}
10. Nf3 {[%clk 0:04:20.2]} 10... g6 {[%clk 0:04:37.6]} 11. Be2 {[%clk
0:04:14.9]} 11... Bf5 {[%clk 0:04:36.3]} 12. Qd2 {[%clk 0:04:13.5]} 12... Bd6
{[%clk 0:04:35.5]} 13. O-O {[%clk 0:04:08.4]} 13... Re8 {[%clk 0:04:34.5]} 14.
Bd3 {[%clk 0:04:06.3]} 14... Qd7 {[%clk 0:04:33]} 15. Bxf5 {[%clk 0:04:04.5]}
15... Qxf5 {[%clk 0:04:31.7]} 16. Qd3 {[%clk 0:04:04.1]} 16... Qxd3 {[%clk
0:04:25.2]} 17. cxd3 {[%clk 0:04:03.4]} 17... Re2 {[%clk 0:04:24]} 18. f5 {[%clk
0:03:38.8]} 18... g5 {[%clk 0:04:20.4]} 19. a4 {[%clk 0:03:24.9]} 19... Rae8
{[%clk 0:04:18.3]} 20. Ba3 {[%clk 0:03:15.3]} 20... Rc2 {[%clk 0:04:14.3]} 21.
Bxd6 {[%clk 0:03:09.6]} 21... cxd6 {[%clk 0:04:13.2]} 22. Rae1 {[%clk
0:03:05.6]} 22... Kf7 {[%clk 0:04:02.4]} 23. Rxe8 {[%clk 0:03:02.4]} 23... Kxe8
{[%clk 0:04:01.2]} 24. Re1+ {[%clk 0:03:01]} 24... Kf7 {[%clk 0:04:00.1]} 25.
Re6 {[%clk 0:02:54.3]} 25... Rxc3 {[%clk 0:03:58.4]} 26. Ne1 {[%clk 0:02:48]}
26... Nxd4 {[%clk 0:03:44.4]} 27. Rxd6 {[%clk 0:02:45.8]} 27... Nxf5 {[%clk
0:03:40.7]} 28. Rxd5 {[%clk 0:02:44.3]} 28... Ke6 {[%clk 0:03:38.7]} 29. Rb5
{[%clk 0:02:37.8]} 29... b6 {[%clk 0:03:36.1]} 30. a5 {[%clk 0:02:35.8]} 30...
Rc5 {[%clk 0:03:33]} 31. Rxc5 {[%clk 0:02:05.1]} 31... bxc5 {[%clk 0:03:31.9]}
32. Kf2 {[%clk 0:02:03.8]} 32... Kd5 {[%clk 0:03:28]} 33. Kf3 {[%clk 0:02:00.4]}
33... Kd4 {[%clk 0:03:21.9]} 34. Kg4 {[%clk 0:01:55.3]} 34... Ne3+ {[%clk
0:03:17.5]} 35. Kf3 {[%clk 0:01:53.6]} 35... f5 {[%clk 0:03:06.3]} 36. h4 {[%clk
0:01:45.6]} 36... h6 {[%clk 0:03:04.8]} 37. h5 {[%clk 0:01:42]} 37... Nd5 {[%clk
0:02:44.3]} 38. g3 {[%clk 0:01:39.4]} 38... g4+ {[%clk 0:02:38.8]} 39. Ke2
{[%clk 0:01:37.5]} 39... Kc3 {[%clk 0:02:36]} 40. Ng2 {[%clk 0:01:30]} 40... Kb4
{[%clk 0:02:33.6]} 41. Ne3 {[%clk 0:01:26.3]} 41... Nxe3 {[%clk 0:02:22.5]} 42.
Kxe3 {[%clk 0:01:26.2]} 42... Kxa5 {[%clk 0:02:21.8]} 43. Kf4 {[%clk 0:01:25.3]}
43... Kb4 {[%clk 0:02:19.5]} 44. Kxf5 {[%clk 0:01:25.2]} 44... a5 {[%clk
0:02:18.5]} 45. Kg6 {[%clk 0:01:23.3]} 45... a4 {[%clk 0:02:17.7]} 46. Kxh6
{[%clk 0:01:22.9]} 46... a3 {[%clk 0:02:16.9]} 47. Kg7 {[%clk 0:01:22.8]} 47...
a2 {[%clk 0:02:15.8]} 48. h6 {[%clk 0:01:22.7]} 48... a1=Q+ {[%clk 0:02:13.9]}
49. Kg8 {[%clk 0:01:19.9]} 49... Qa8+ {[%clk 0:02:11.1]} 50. Kg7 {[%clk
0:01:18.8]} 50... Qb7+ {[%clk 0:02:10.3]} 51. Kg8 {[%clk 0:01:15.6]} 51... Qb8+
{[%clk 0:02:09.5]} 52. Kg7 {[%clk 0:01:14.5]} 52... Qxg3 {[%clk 0:02:08.5]} 53.
h7 {[%clk 0:01:12.5]} 53... Qe5+ {[%clk 0:02:07.6]} 54. Kg8 {[%clk 0:01:10.9]}
54... g3 {[%clk 0:02:06.7]} 55. h8=Q {[%clk 0:01:06.5]} 55... Qxh8+ {[%clk
0:02:05.4]} 56. Kxh8 {[%clk 0:01:06.4]} 56... g2 {[%clk 0:02:05.1]} 0-1

[Event "Live Chess"]
[Site "Chess.com"]
[Date "2024.06.02"]
[Round "-"]
[White "NAZRIZ1977"]
[Black "McFim"]
[Result "1-0"]
[WhiteElo "2128"]
[BlackElo "1707"]
[TimeControl "300"]
[EndTime "0:43:27 PDT"]
[Termination "NAZRIZ1977 won by resignation"]

1. d4 {[%clk 0:04:53.9]} 1... d5 {[%clk 0:04:58.9]} 2. Nf3 {[%clk 0:04:53.1]}
2... Nf6 {[%clk 0:04:57.2]} 3. e3 {[%clk 0:04:52.5]} 3... Bf5 {[%clk 0:04:55.1]}
4. c4 {[%clk 0:04:51.1]} 4... e6 {[%clk 0:04:53.4]} 5. Qb3 {[%clk 0:04:50.2]}
5... b6 {[%clk 0:04:51.4]} 6. Nc3 {[%clk 0:04:49.1]} 6... Nbd7 {[%clk 0:04:50]}
7. cxd5 {[%clk 0:04:42.3]} 7... exd5 {[%clk 0:04:44.8]} 8. Nxd5 {[%clk
0:04:41.3]} 8... Be6 {[%clk 0:04:43]} 9. Nxf6+ {[%clk 0:04:39.1]} 9... Nxf6
{[%clk 0:04:42.7]} 10. Qa4+ {[%clk 0:04:36.4]} 10... Bd7 {[%clk 0:04:40.1]} 11.
Bb5 {[%clk 0:04:35.1]} 11... Bd6 {[%clk 0:04:34.7]} 12. O-O {[%clk 0:04:33]}
12... O-O {[%clk 0:04:33.2]} 13. Bxd7 {[%clk 0:04:31.9]} 13... Nxd7 {[%clk
0:04:31.6]} 14. e4 {[%clk 0:04:30.7]} 14... a5 {[%clk 0:04:23]} 15. e5 {[%clk
0:04:29]} 15... Be7 {[%clk 0:04:21.3]} 16. Bf4 {[%clk 0:04:24.1]} 16... Re8
{[%clk 0:04:17.9]} 17. Rac1 {[%clk 0:04:19.2]} 17... Rc8 {[%clk 0:04:15.2]} 18.
Rfd1 {[%clk 0:04:13.5]} 18... Nf8 {[%clk 0:04:13.8]} 19. d5 {[%clk 0:04:11.8]}
19... Ng6 {[%clk 0:04:10.2]} 20. Bg3 {[%clk 0:04:10.6]} 20... Bc5 {[%clk
0:04:03.6]} 21. d6 {[%clk 0:03:59.5]} 21... cxd6 {[%clk 0:04:01.1]} 22. exd6
{[%clk 0:03:58.5]} 22... Re6 {[%clk 0:03:40.1]} 23. d7 {[%clk 0:03:49.7]} 23...
Ra8 {[%clk 0:03:27.8]} 24. a3 {[%clk 0:03:48.3]} 24... Nf8 {[%clk 0:03:17.6]}
25. b4 {[%clk 0:03:45.6]} 25... axb4 {[%clk 0:03:15.9]} 26. Qxa8 {[%clk
0:03:38.4]} 26... Qxa8 {[%clk 0:03:12.8]} 27. d8=Q {[%clk 0:03:36.7]} 27... Qxd8
{[%clk 0:03:10.6]} 28. Rxd8 {[%clk 0:03:36.1]} 28... bxa3 {[%clk 0:03:09.2]} 29.
Rb8 {[%clk 0:03:19.4]} 29... h6 {[%clk 0:03:05.3]} 30. Nd2 {[%clk 0:03:08.1]}
30... Kh7 {[%clk 0:02:59.9]} 31. Nc4 {[%clk 0:03:06.9]} 31... Nd7 {[%clk
0:02:55.5]} 32. Rb7 {[%clk 0:03:02.9]} 32... Nf6 {[%clk 0:02:31.6]} 33. Ra1
{[%clk 0:03:01]} 33... Nd5 {[%clk 0:02:14.1]} 34. h3 {[%clk 0:02:59.2]} 34... f5
{[%clk 0:02:02.6]} 35. Nxa3 {[%clk 0:02:47.1]} 35... Nc3 {[%clk 0:01:57.6]} 36.
Kf1 {[%clk 0:02:39.6]} 36... Ne4 {[%clk 0:01:48.6]} 37. Nc4 {[%clk 0:02:35]}
37... Nxg3+ {[%clk 0:01:44.3]} 38. fxg3 {[%clk 0:02:33.3]} 38... Kg6 {[%clk
0:01:39.1]} 39. Nxb6 {[%clk 0:02:22.2]} 1-0

[Event "Live Chess"]
[Site "Chess.com"]
[Date "2024.06.02"]
[Round "-"]
[White "NatashaRegan"]
[Black "Lukaskonstanta4"]
[Result "1-0"]
[WhiteElo "1722"]
[BlackElo "918"]
[TimeControl "300"]
[EndTime "0:44:09 PDT"]
[Termination "NatashaRegan won on time"]

1. Nf3 {[%clk 0:04:55.3]} 1... Nc6 {[%clk 0:04:57.5]} 2. d4 {[%clk 0:04:53.5]}
2... d5 {[%clk 0:04:54.1]} 3. c4 {[%clk 0:04:51.2]} 3... e6 {[%clk 0:04:45.6]}
4. Nc3 {[%clk 0:04:48.2]} 4... Nf6 {[%clk 0:04:43.2]} 5. g3 {[%clk 0:04:44.5]}
5... Be7 {[%clk 0:04:36]} 6. Bg2 {[%clk 0:04:39.6]} 6... O-O {[%clk 0:04:26.5]}
7. O-O {[%clk 0:04:36.4]} 7... a6 {[%clk 0:04:06.2]} 8. cxd5 {[%clk 0:04:34.4]}
8... exd5 {[%clk 0:04:04.2]} 9. Bf4 {[%clk 0:04:32.1]} 9... Bf5 {[%clk
0:03:47.9]} 10. Rc1 {[%clk 0:04:29.5]} 10... Qd7 {[%clk 0:03:38.9]} 11. Re1
{[%clk 0:04:26.6]} 11... Bd6 {[%clk 0:03:21]} 12. Ne5 {[%clk 0:04:22]} 12... Qe7
{[%clk 0:02:59.3]} 13. Nxc6 {[%clk 0:04:13.9]} 13... bxc6 {[%clk 0:02:57.2]} 14.
e3 {[%clk 0:04:05.4]} 14... Bxf4 {[%clk 0:02:31.9]} 15. exf4 {[%clk 0:04:03.1]}
15... Qd6 {[%clk 0:02:28.9]} 16. Na4 {[%clk 0:03:59.9]} 16... Be4 {[%clk
0:01:58.4]} 17. f3 {[%clk 0:03:49.2]} 17... Bf5 {[%clk 0:01:50.2]} 18. Nc5
{[%clk 0:03:45.3]} 18... a5 {[%clk 0:01:35.9]} 19. Qd2 {[%clk 0:03:43.3]} 19...
Nd7 {[%clk 0:01:03.9]} 20. g4 {[%clk 0:03:38.2]} 1-0

[Event "Live Chess"]
[Site "Chess.com"]
[Date "2024.06.02"]
[Round "-"]
[White "MagnersCarlsberg2870"]
[Black "SimonBoy1"]
[Result "1-0"]
[WhiteElo "1822"]
[BlackElo "1527"]
[TimeControl "300"]
[EndTime "0:44:11 PDT"]
[Termination "MagnersCarlsberg2870 won by resignation"]

1. d4 {[%clk 0:04:57.8]} 1... d5 {[%clk 0:04:59.1]} 2. e3 {[%clk 0:04:56.4]}
2... e6 {[%clk 0:04:46.9]} 3. Bd3 {[%clk 0:04:54.6]} 3... Nf6 {[%clk 0:04:46.4]}
4. Nd2 {[%clk 0:04:53.1]} 4... Be7 {[%clk 0:04:45.3]} 5. Qe2 {[%clk 0:04:51.1]}
5... c6 {[%clk 0:04:44.9]} 6. f4 {[%clk 0:04:50.1]} 6... O-O {[%clk 0:04:44.5]}
7. Ngf3 {[%clk 0:04:49.4]} 7... b6 {[%clk 0:04:43.4]} 8. O-O {[%clk 0:04:48.5]}
8... Bb7 {[%clk 0:04:43.1]} 9. Ne5 {[%clk 0:04:47.8]} 9... Nbd7 {[%clk
0:04:42.3]} 10. Rf3 {[%clk 0:04:46.8]} 10... Rc8 {[%clk 0:04:34.2]} 11. Rh3
{[%clk 0:04:45]} 11... c5 {[%clk 0:04:27.3]} 12. c3 {[%clk 0:04:43]} 12... a5
{[%clk 0:04:19.1]} 13. g4 {[%clk 0:04:41.1]} 13... a4 {[%clk 0:04:12]} 14. g5
{[%clk 0:04:39.9]} 14... Ne8 {[%clk 0:04:10.7]} 15. Bxh7+ {[%clk 0:04:37.3]} 1-0

[Event "Live Chess"]
[Site "Chess.com"]
[Date "2024.06.02"]
[Round "-"]
[White "GerardATHart"]
[Black "yarek"]
[Result "0-1"]
[WhiteElo "1377"]
[BlackElo "1719"]
[TimeControl "300"]
[EndTime "0:44:20 PDT"]
[Termination "yarek won by resignation"]

1. e4 {[%clk 0:04:55.2]} 1... g6 {[%clk 0:04:59.5]} 2. d4 {[%clk 0:04:53.1]}
2... Bg7 {[%clk 0:04:59]} 3. c4 {[%clk 0:04:51.3]} 3... c6 {[%clk 0:04:58.5]} 4.
Nc3 {[%clk 0:04:49.8]} 4... d6 {[%clk 0:04:58]} 5. Nf3 {[%clk 0:04:48.1]} 5...
Bg4 {[%clk 0:04:53.5]} 6. Be3 {[%clk 0:04:46]} 6... Nf6 {[%clk 0:04:51.1]} 7.
Qd2 {[%clk 0:04:42.4]} 7... Bxf3 {[%clk 0:04:47.2]} 8. gxf3 {[%clk 0:04:39]}
8... Nbd7 {[%clk 0:04:41.1]} 9. O-O-O {[%clk 0:04:37.6]} 9... a5 {[%clk
0:04:27.7]} 10. e5 {[%clk 0:04:18.6]} 10... dxe5 {[%clk 0:04:16.8]} 11. dxe5
{[%clk 0:04:15.1]} 11... Nxe5 {[%clk 0:04:16.2]} 12. Bf4 {[%clk 0:04:11.8]}
12... Nxf3 {[%clk 0:04:06.7]} 13. Qe3 {[%clk 0:04:02.8]} 13... Qc8 {[%clk
0:03:30.3]} 14. Qxf3 {[%clk 0:03:59.2]} 14... O-O {[%clk 0:03:29.8]} 15. h4
{[%clk 0:03:50.3]} 15... h5 {[%clk 0:03:26.4]} 16. Bh3 {[%clk 0:03:48.1]} 16...
e6 {[%clk 0:03:21.9]} 17. Qe3 {[%clk 0:03:43.9]} 17... Kh7 {[%clk 0:03:14.1]}
18. Ne4 {[%clk 0:03:37.8]} 18... Nxe4 {[%clk 0:03:00.7]} 19. Qxe4 {[%clk
0:03:33.9]} 19... b5 {[%clk 0:03:00.1]} 20. c5 {[%clk 0:03:26.2]} 20... b4
{[%clk 0:02:44.6]} 21. Bd6 {[%clk 0:03:23.1]} 21... Re8 {[%clk 0:02:39.8]} 22.
Bf1 {[%clk 0:03:17.1]} 22... a4 {[%clk 0:02:32.1]} 23. Bc4 {[%clk 0:03:13.8]}
23... a3 {[%clk 0:02:15.6]} 24. b3 {[%clk 0:03:11.4]} 24... e5 {[%clk
0:02:10.5]} 25. Bxf7 {[%clk 0:02:52.9]} 25... Rd8 {[%clk 0:01:59.3]} 26. Qxg6+
{[%clk 0:02:49.5]} 26... Kh8 {[%clk 0:01:56.8]} 27. Qh6+ {[%clk 0:02:46.5]}
27... Bxh6+ {[%clk 0:01:56]} 0-1

[Event "Live Chess"]
[Site "Chess.com"]
[Date "2024.06.02"]
[Round "-"]
[White "JanMur7"]
[Black "Kyrylo7770"]
[Result "1-0"]
[WhiteElo "2250"]
[BlackElo "1629"]
[TimeControl "300"]
[EndTime "0:44:27 PDT"]
[Termination "JanMur7 won by checkmate"]

1. c4 {[%clk 0:04:58.3]} 1... c6 {[%clk 0:04:58.6]} 2. d4 {[%clk 0:04:56.7]}
2... d5 {[%clk 0:04:58.2]} 3. Nc3 {[%clk 0:04:56.2]} 3... Bg4 {[%clk 0:04:57.1]}
4. cxd5 {[%clk 0:04:53.9]} 4... cxd5 {[%clk 0:04:56.1]} 5. Qb3 {[%clk
0:04:53.5]} 5... b6 {[%clk 0:04:55]} 6. Qxd5 {[%clk 0:04:52.1]} 6... Qxd5 {[%clk
0:04:52.3]} 7. Nxd5 {[%clk 0:04:52]} 7... Na6 {[%clk 0:04:51.3]} 8. e4 {[%clk
0:04:48.3]} 8... e6 {[%clk 0:04:50.6]} 9. Bxa6 {[%clk 0:04:44.5]} 9... exd5
{[%clk 0:04:50]} 10. Bb7 {[%clk 0:04:44.1]} 10... Rb8 {[%clk 0:04:49.1]} 11.
Bxd5 {[%clk 0:04:42.3]} 11... Bb4+ {[%clk 0:04:48.5]} 12. Bd2 {[%clk 0:04:40.7]}
12... Bxd2+ {[%clk 0:04:47.3]} 13. Kxd2 {[%clk 0:04:40.6]} 13... Nf6 {[%clk
0:04:46]} 14. Bc6+ {[%clk 0:04:38.6]} 14... Ke7 {[%clk 0:04:43.7]} 15. f3 {[%clk
0:04:37.9]} 15... Bd7 {[%clk 0:04:42.3]} 16. Bxd7 {[%clk 0:04:36.6]} 16... Nxd7
{[%clk 0:04:41.3]} 17. Ne2 {[%clk 0:04:36.2]} 17... Rbc8 {[%clk 0:04:36.9]} 18.
Rac1 {[%clk 0:04:35.6]} 18... Rcd8 {[%clk 0:04:36]} 19. Rc7 {[%clk 0:04:33.7]}
19... Kf6 {[%clk 0:04:33.1]} 20. Ke3 {[%clk 0:04:27.5]} 20... Kg6 {[%clk
0:04:30.5]} 21. Nf4+ {[%clk 0:04:25.7]} 21... Kg5 {[%clk 0:04:29]} 22. h4+
{[%clk 0:04:24.1]} 22... Kf6 {[%clk 0:04:27.6]} 23. Rxa7 {[%clk 0:04:18.8]}
23... g5 {[%clk 0:04:19.5]} 24. hxg5+ {[%clk 0:04:17.2]} 24... Kxg5 {[%clk
0:04:18.9]} 25. Rh5+ {[%clk 0:04:12.2]} 25... Kf6 {[%clk 0:04:17.6]} 26. Rf5+
{[%clk 0:04:11.3]} 26... Kg7 {[%clk 0:04:16.4]} 27. Nh5+ {[%clk 0:04:08.3]}
27... Kg6 {[%clk 0:04:15.5]} 28. g4 {[%clk 0:04:06]} 28... Rhf8 {[%clk
0:04:09.3]} 29. f4 {[%clk 0:04:02.1]} 29... Nb8 {[%clk 0:04:04.8]} 30. Rf6#
{[%clk 0:04:00.7]} 1-0

[Event "Live Chess"]
[Site "Chess.com"]
[Date "2024.06.02"]
[Round "-"]
[White "peteopeteo"]
[Black "Hacker_2009"]
[Result "0-1"]
[WhiteElo "1539"]
[BlackElo "2236"]
[TimeControl "300"]
[EndTime "0:44:29 PDT"]
[Termination "Hacker_2009 won by resignation"]

1. e4 {[%clk 0:04:59.1]} 1... c5 {[%clk 0:04:57.8]} 2. a3 {[%clk 0:04:57.8]}
2... e6 {[%clk 0:04:56.8]} 3. b4 {[%clk 0:04:57.7]} 3... cxb4 {[%clk 0:04:56.6]}
4. axb4 {[%clk 0:04:57.6]} 4... Bxb4 {[%clk 0:04:56]} 5. c3 {[%clk 0:04:57.5]}
5... Bf8 {[%clk 0:04:53.8]} 6. d4 {[%clk 0:04:56.8]} 6... d5 {[%clk 0:04:45.2]}
7. exd5 {[%clk 0:04:55.7]} 7... exd5 {[%clk 0:04:45.1]} 8. Nf3 {[%clk
0:04:55.6]} 8... Nf6 {[%clk 0:04:44.5]} 9. Bd3 {[%clk 0:04:53.1]} 9... Be7
{[%clk 0:04:43]} 10. Ne5 {[%clk 0:04:52.5]} 10... O-O {[%clk 0:04:42.1]} 11. h4
{[%clk 0:04:50.8]} 11... Nc6 {[%clk 0:04:34.5]} 12. g4 {[%clk 0:04:37.8]} 12...
Nxe5 {[%clk 0:04:30.9]} 13. dxe5 {[%clk 0:04:35.4]} 13... Nxg4 {[%clk
0:04:30.1]} 14. Rg1 {[%clk 0:04:32.5]} 14... Bxh4 {[%clk 0:04:15.1]} 15. Rxg4
{[%clk 0:04:29]} 15... Bxg4 {[%clk 0:04:12.1]} 16. Qxg4 {[%clk 0:04:28.9]} 16...
Re8 {[%clk 0:04:11.2]} 17. Bf4 {[%clk 0:04:17.7]} 17... Bf6 {[%clk 0:03:36.1]}
18. Qh5 {[%clk 0:03:44.2]} 18... g6 {[%clk 0:03:33.2]} 19. Qh3 {[%clk
0:03:30.9]} 19... Bxe5 {[%clk 0:03:30.5]} 20. Be3 {[%clk 0:03:27.2]} 20... d4
{[%clk 0:03:28.8]} 21. cxd4 {[%clk 0:03:24.5]} 21... Bxd4 {[%clk 0:03:28.6]} 22.
Ra4 {[%clk 0:03:17.9]} 22... Bxe3 {[%clk 0:03:27.1]} 23. fxe3 {[%clk 0:03:17.1]}
23... Qxd3 {[%clk 0:03:26.5]} 24. Rh4 {[%clk 0:03:10.6]} 24... Rxe3+ {[%clk
0:03:24.5]} 25. Qxe3 {[%clk 0:03:08.7]} 25... Qxe3+ {[%clk 0:03:24.4]} 26. Kd1
{[%clk 0:03:07.5]} 26... Rd8+ {[%clk 0:03:22.1]} 27. Kc2 {[%clk 0:03:05.5]}
27... Qf2+ {[%clk 0:03:19]} 0-1

[Event "Live Chess"]
[Site "Chess.com"]
[Date "2024.06.02"]
[Round "-"]
[White "KeithArkell"]
[Black "Ksenia_2013"]
[Result "1-0"]
[WhiteElo "2414"]
[BlackElo "943"]
[TimeControl "300"]
[EndTime "0:44:29 PDT"]
[Termination "KeithArkell won by resignation"]

1. d4 {[%clk 0:04:58.3]} 1... d5 {[%clk 0:04:57.4]} 2. Nf3 {[%clk 0:04:57.6]}
2... Nc6 {[%clk 0:04:53.8]} 3. c4 {[%clk 0:04:57]} 3... dxc4 {[%clk 0:04:50.7]}
4. e4 {[%clk 0:04:38.8]} 4... Be6 {[%clk 0:04:48.4]} 5. d5 {[%clk 0:04:37]} 5...
Na5 {[%clk 0:04:44.3]} 6. dxe6 {[%clk 0:04:34.7]} 6... fxe6 {[%clk 0:04:41.6]}
7. Qxd8+ {[%clk 0:04:32.4]} 7... Rxd8 {[%clk 0:04:38.8]} 8. Bd2 {[%clk
0:04:31.8]} 8... c3 {[%clk 0:04:34.4]} 9. Bxc3 {[%clk 0:04:30.6]} 9... Nc4
{[%clk 0:04:32.8]} 10. Bxc4 {[%clk 0:04:29.5]} 10... Nf6 {[%clk 0:04:27.8]} 11.
Nbd2 {[%clk 0:04:27.8]} 11... g6 {[%clk 0:04:24.1]} 12. Bxe6 {[%clk 0:04:26.6]}
12... Bh6 {[%clk 0:04:14.5]} 13. Ke2 {[%clk 0:04:25]} 13... Ng4 {[%clk
0:04:02.8]} 14. Bxg4 {[%clk 0:04:22.5]} 1-0

[Event "Live Chess"]
[Site "Chess.com"]
[Date "2024.06.02"]
[Round "-"]
[White "CliveFrostick"]
[Black "NottheBishopSacrifice"]
[Result "0-1"]
[WhiteElo "1864"]
[BlackElo "2306"]
[TimeControl "300"]
[EndTime "0:44:48 PDT"]
[Termination "NottheBishopSacrifice won by resignation"]

1. e4 {[%clk 0:04:56.2]} 1... c6 {[%clk 0:04:59.9]} 2. Nc3 {[%clk 0:04:54]} 2...
d5 {[%clk 0:04:59.8]} 3. Nf3 {[%clk 0:04:52.4]} 3... dxe4 {[%clk 0:04:59.4]} 4.
Nxe4 {[%clk 0:04:51.5]} 4... Nf6 {[%clk 0:04:57.6]} 5. Qe2 {[%clk 0:04:49.3]}
5... Nxe4 {[%clk 0:04:56.2]} 6. Qxe4 {[%clk 0:04:48.3]} 6... Nd7 {[%clk
0:04:56.1]} 7. Bc4 {[%clk 0:04:45.7]} 7... Nf6 {[%clk 0:04:55.7]} 8. Ne5 {[%clk
0:04:44.4]} 8... e6 {[%clk 0:04:55.3]} 9. Qe2 {[%clk 0:04:42.1]} 9... b5 {[%clk
0:04:54.9]} 10. Bb3 {[%clk 0:04:40.2]} 10... Qc7 {[%clk 0:04:54.5]} 11. a4
{[%clk 0:04:37.8]} 11... b4 {[%clk 0:04:47.7]} 12. d4 {[%clk 0:04:29]} 12... Bd6
{[%clk 0:04:45.4]} 13. Nc4 {[%clk 0:04:22.8]} 13... O-O {[%clk 0:04:43.9]} 14.
Nxd6 {[%clk 0:04:19.8]} 14... Qxd6 {[%clk 0:04:43.8]} 15. Be3 {[%clk 0:04:12.4]}
15... a5 {[%clk 0:04:24]} 16. O-O {[%clk 0:04:03]} 16... Ba6 {[%clk 0:04:22.5]}
17. Bc4 {[%clk 0:04:00.9]} 17... Bxc4 {[%clk 0:04:21.2]} 18. Qxc4 {[%clk
0:03:59.6]} 18... Qd5 {[%clk 0:04:20.8]} 19. Qd3 {[%clk 0:03:45.2]} 19... Nd7
{[%clk 0:04:13.2]} 20. c4 {[%clk 0:03:34.8]} 20... bxc3 {[%clk 0:04:11.6]} 21.
bxc3 {[%clk 0:03:33.7]} 21... Nb6 {[%clk 0:04:10.4]} 22. Rfb1 {[%clk 0:03:24]}
22... Nc4 {[%clk 0:04:09.5]} 23. Rb7 {[%clk 0:03:16.5]} 23... Rab8 {[%clk
0:04:02.4]} 24. Rab1 {[%clk 0:03:15.3]} 24... Rxb7 {[%clk 0:04:01.4]} 25. Rxb7
{[%clk 0:03:13.4]} 25... Nxe3 {[%clk 0:03:44.3]} 26. fxe3 {[%clk 0:02:57.3]}
26... Qa2 {[%clk 0:03:42.3]} 27. Qb1 {[%clk 0:02:50.2]} 27... Qxa4 {[%clk
0:03:40.4]} 28. Qb6 {[%clk 0:02:32.7]} 28... Qd1+ {[%clk 0:03:37.6]} 29. Kf2
{[%clk 0:02:31.1]} 29... Qd2+ {[%clk 0:03:36.3]} 30. Kf3 {[%clk 0:02:29.4]}
30... Qxc3 {[%clk 0:03:28.5]} 31. Rc7 {[%clk 0:02:26.7]} 31... Qe1 {[%clk
0:03:24.1]} 32. Qxc6 {[%clk 0:02:20.2]} 32... Qf1+ {[%clk 0:03:19.2]} 33. Kg3
{[%clk 0:02:19.1]} 33... Qe1+ {[%clk 0:03:17.2]} 34. Kf3 {[%clk 0:02:18.3]}
34... Qd1+ {[%clk 0:03:15.1]} 35. Kg3 {[%clk 0:02:16.7]} 35... a4 {[%clk
0:03:13.7]} 36. Ra7 {[%clk 0:02:13.2]} 36... Qb3 {[%clk 0:03:12.5]} 37. Kf3
{[%clk 0:01:56.2]} 37... a3 {[%clk 0:03:11.2]} 38. Ra8 {[%clk 0:01:50.9]} 38...
g6 {[%clk 0:03:01.4]} 39. Rxf8+ {[%clk 0:01:43.8]} 39... Kxf8 {[%clk 0:03:00.9]}
40. Qd6+ {[%clk 0:01:42.9]} 40... Kg8 {[%clk 0:02:57.5]} 41. Kf4 {[%clk
0:01:32.4]} 41... a2 {[%clk 0:02:53.7]} 42. Qa6 {[%clk 0:01:25.3]} 42... Qb1
{[%clk 0:02:47.3]} 0-1